bitfinex-derivatives/quotes_ETHF0:USTF0_20250130
["timestamp","ask_amount","ask_price","bid_price","bid_amount"]
[1738257434813,0.61084,3274.3,3274.2,3.2078]
[1738257435408,0.00457784,3274.6,3274.1,3.7040558]
[1738257435409,0.6108,3274.5,3274.1,3.7040558]
[1738257435610,0.61086,3274.2,3274.1,3.0931858]
[1738257436422,3.21237784,3274.6,3274.1,3.0931858]
[1738257436629,0.61081,3274.5,3274.3,0.61083]
[1738257437020,3.21237784,3274.6,3274.1,6.3009858]
[1738257437324,0.00457784,3274.6,3274.1,6.3009858]
[1738257437919,0.00457784,3274.6,3274.3,0.61084]
[1738257438120,0.61082,3274.4,3274.2,0.61085]
[1738257438324,0.61082,3274.5,3274.3,0.61083]
[1738257438525,0.00457784,3274.6,3274.1,6.3009858]
[1738257438931,0.61086,3274.2,3274.1,6.3009858]
[1738257439129,0.61085,3274.3,3274.2,0.61085]
[1738257439327,0.61083,3274.4,3274.2,0.61085]
[1738257439629,0.00457784,3274.6,3274.1,6.3009858]
[1738257439928,0.00457784,3274.6,3274.5,0.6108]
[1738257440533,0.61537784,3274.6,3274.4,3.2040958]
[1738257440724,0.00457784,3274.6,3274.5,0.6108]
[1738257440924,0.00457784,3274.6,3274.1,3.7077]
[1738257440925,0.61085,3274.3,3274.1,6.9118558]
[1738257441133,0.00457784,3274.6,3274.1,6.3009858]
[1738257441431,0.61081,3274.5,3274.1,6.3009858]
[1738257441934,0.61083,3274.4,3274.2,0.61085]
[1738257442227,0.00457784,3274.6,3274.1,6.3009858]
[1738257442431,0.00457784,3274.6,3274.4,0.61082]
[1738257442432,0.61081,3274.5,3274.4,0.61082]
[1738257442620,0.00457784,3274.6,3274.5,0.6108]
[1738257443431,0.00457784,3274.6,3274.4,2.5932858]
[1738257443733,0.61537784,3274.6,3274.5,0.6108]
[1738257443932,0.00457784,3274.6,3274.5,0.6108]
[1738257444535,0.00457784,3274.6,3274.4,2.5932858]
[1738257444724,0.00457784,3274.6,3274.5,0.6108]
[1738257444725,0.61537784,3274.6,3274.5,0.6108]
[1738257445131,0.00457784,3274.6,3274.5,0.6108]
[1738257445333,0.61536784,3274.6,3274.5,0.6108]
[1738257445633,0.00457784,3274.6,3274.5,0.6108]
[1738257445832,0.00457784,3274.6,3274.4,2.5932858]
[1738257445833,0.6108,3274.5,3274.4,2.5932858]
[1738257446233,0.00457784,3274.6,3274.1,6.3009858]
[1738257446435,0.00457784,3274.6,3274.5,0.6108]
[1738257447028,0.61536784,3274.6,3274.5,0.6108]
[1738257447340,0.00457784,3274.6,3274.5,0.6108]
[1738257448940,0.00457784,3274.6,3274.5,3.8186]
[1738257450137,0.00159215,3274.6,3274.5,3.8186]
[1738257452640,0.61238215,3274.6,3274.5,3.2078]
[1738257452841,0.00159215,3274.6,3274.5,3.2078]
[1738257453045,0.00159215,3274.6,3274.5,3.8186]
[1738257455541,0.00159215,3274.6,3274.5,0.6108]
[1738257456232,0.00159215,3274.6,3274.5,3.8186]
[1738257461745,0.502,3275.6,3274.5,14.10016156]
[1738257461952,0.5054,3275.9,3275.5,3.2039058]
[1738257462247,1.52607,3276.6,3276.0,0.61052]
[1738257462248,0.5153,3276.1,3276.0,0.61052]
[1738257462548,3.2078,3277.0,3276.0,5.1865716]
[1738257462846,3.2078,3277.0,3276.9,2.5932858]
[1738257462847,0.4847,3277.0,3276.9,2.5932858]
[1738257463349,1.09504,3277.0,3276.9,2.5932858]
[1738257463847,0.4847,3277.0,3276.9,3.2036458]
[1738257464242,0.00457784,3277.3,3277.2,0.6103]
[1738257464443,0.00457784,3277.3,3277.2,3.2035858]
[1738257465250,0.00457784,3277.3,3277.2,6.4113858]
[1738257466543,0.00457784,3277.3,3277.2,5.8010858]
[1738257466853,0.00457784,3277.3,3277.2,6.4113858]
[1738257467151,0.00457784,3277.3,3277.2,5.8010858]
[1738257467453,0.00457784,3277.3,3277.2,2.5932858]
[1738257467651,0.00457784,3277.3,3277.2,6.4113858]
[1738257469846,0.00457784,3277.3,3277.2,11.9147858]
[1738257470047,3.2078,3278.2,3277.2,13.8977716]
[1738257470349,0.5225,3278.4,3277.9,5.8010858]
[1738257470550,0.5225,3278.4,3277.2,3.0966858]
[1738257470551,0.526,3279.3,3278.3,5.8010858]
[1738257470846,3.2078,3279.8,3278.8,6.4110858]
[1738257470847,0.60994,3279.2,3278.8,6.4110858]
[1738257471051,3.2078,3279.8,3278.8,6.4110858]
[1738257471052,0.526,3279.7,3278.8,5.8010858]
[1738257471252,0.526,3279.7,3278.8,3.2078]
[1738257471253,0.00457784,3279.3,3278.8,3.2078]
[1738257471449,0.60998,3279.0,3278.8,3.2078]
[1738257471645,0.60998,3278.9,3278.8,3.2078]
[1738257471847,0.60997,3279.0,3278.8,3.2078]
[1738257472049,0.00457784,3279.3,3278.8,3.2078]
[1738257472254,0.60998,3278.9,3278.8,3.2078]
[1738257472649,0.00457784,3279.3,3278.8,5.8010858]
[1738257472951,0.60994,3279.2,3278.8,6.4110858]
[1738257473153,0.00457784,3279.3,3279.1,2.5932858]
[1738257473462,0.39107121,3280.3,3279.2,3.2078]
[1738257473648,0.39107121,3280.3,3279.6,5.8010858]
[1738257473955,0.39107121,3280.3,3279.6,3.2078]
[1738257474552,0.60984,3279.7,3279.6,3.2078]
[1738257477156,0.60984,3279.7,3278.6,2.5932858]
[1738257477157,0.60991,3279.3,3279.2,3.2078]
[1738257477647,3.6891,3279.6,3278.8,3.2078]
[1738257477851,3.6891,3279.6,3278.7,2.59786364]
[1738257477852,3.2078,3279.2,3278.7,2.59786364]
[1738257478052,3.2078,3279.2,3278.7,0.00457784]
[1738257478250,0.61,3278.8,3278.7,0.00457784]
[1738257481657,0.5262,3279.4,3278.7,0.00457784]
[1738257481953,0.4813,3279.6,3279.2,3.2078]
[1738257482160,0.60986,3279.6,3279.4,0.60989]
[1738257482363,3.2078,3280.0,3279.3,2.5932858]
[1738257482859,0.60988,3279.5,3279.4,0.60989]
[1738257483851,1.0087,3280.2,3279.3,2.5932858]
[1738257484059,0.4825,3280.2,3279.9,5.8010858]
[1738257484365,0.60973,3280.3,3280.2,0.60974]
[1738257484562,0.60973,3280.3,3280.1,0.60975]
[1738257484857,0.6097,3280.5,3280.3,0.60971]
[1738257485058,0.60971,3280.4,3280.3,3.2078]
[1738257485760,3.2078,3281.0,3280.3,3.2078]
[1738257485964,0.60961,3280.9,3280.8,3.2029158]
[1738257486162,3.2078,3281.4,3280.8,2.5932858]
[1738257486561,0.60959,3281.1,3280.8,3.20748364]
[1738257486763,0.60961,3280.9,3280.8,0.00457784]
[1738257487061,1.52376,3281.5,3280.8,0.00457784]
[1738257487266,0.6096,3281.0,3280.8,0.61419784]
[1738257487667,0.60961,3280.9,3280.8,0.00457784]
[1738257493970,0.60954,3281.3,3280.8,0.00457784]
[1738257494170,0.60957,3281.2,3280.9,3.14129216]
[1738257494370,0.60957,3281.2,3281.0,0.60959]
[1738257494569,0.60957,3281.2,3281.1,0.60958]
[1738257494769,0.60957,3281.2,3281.0,0.60959]
[1738257495070,1.52371,3281.6,3280.9,3.14129216]
[1738257495264,0.60959,3281.0,3280.9,3.14129216]
[1738257495861,3.2078,3281.8,3280.9,3.14129216]
[1738257496068,3.2078,3281.8,3281.1,3.2078]
[1738257496069,0.60956,3281.2,3281.1,3.2078]
[1738257496569,3.2078,3281.8,3281.1,3.81736]
[1738257496871,3.2078,3281.8,3281.3,3.75082216]
[1738257497061,0.60952,3281.4,3281.3,3.14129216]
[1738257498266,0.60949,3281.6,3281.3,3.75082216]
[1738257498466,0.60951,3281.5,3281.3,3.14129216]
[1738257498869,0.60952,3281.4,3281.3,3.14129216]
[1738257500771,0.60952,3281.4,3281.1,3.81737]
[1738257500772,0.60956,3281.2,3281.1,3.2078]
[1738257507372,5.72749,3281.7,3281.1,3.2078]
[1738257507569,2.51969,3281.7,3281.1,3.2078]
[1738257507767,0.60955,3281.3,3281.1,3.81737]
[1738257507969,0.60956,3281.2,3281.1,3.2078]
[1738257508268,1.52369,3281.7,3281.1,3.2078]
[1738257508575,1.52369,3281.7,3281.1,5.79934161]
[1738257508773,0.60955,3281.3,3281.1,6.40891161]
[1738257509277,0.996,3282.0,3281.1,5.79934161]
[1738257509472,0.60956,3281.2,3281.1,5.79934161]
[1738257509872,0.60956,3281.2,3281.1,3.2078]
[1738257510673,0.60956,3281.2,3280.8,0.00457784]
[1738257510674,0.60961,3280.9,3280.8,0.00457784]
[1738257511780,0.60961,3280.9,3280.8,0.00327728]
[1738257513370,0.60961,3280.9,3280.8,3.20444889]
[1738257513567,0.60961,3280.9,3280.8,3.20364889]
[1738257513772,0.00131007,3281.2,3280.8,2.59401889]
[1738257513986,0.00131007,3281.2,3281.1,6.40892161]
[1738257514979,0.6095,3281.6,3281.5,0.6095]
[1738257515169,0.6095,3281.6,3281.5,5.79934161]
[1738257515373,0.60948,3281.7,3281.6,0.60947]
[1738257515574,0.60946,3281.8,3281.7,0.60946]
[1738257515774,0.60948,3281.6,3281.5,6.40884161]
[1738257516280,0.60948,3281.6,3281.5,5.79934161]
[1738257516580,0.60948,3281.6,3281.5,3.2078]
[1738257518282,0.60948,3281.6,3281.5,6.40884161]
[1738257518475,3.2078,3282.2,3281.5,5.79934161]
[1738257518877,0.60948,3281.6,3281.5,6.40884161]
[1738257519075,3.2078,3282.2,3281.5,5.79934161]
[1738257519277,0.60944,3281.9,3281.8,0.60944]
[1738257519474,0.60942,3282.0,3281.9,0.60941]
[1738257519888,0.60942,3282.0,3281.9,3.81721]
[1738257520178,4.04543,3282.7,3282.0,0.60941]
[1738257520179,0.6094,3282.1,3282.0,0.60941]
[1738257520375,0.6094,3282.1,3282.0,0.486]
[1738257520577,7.13550161,3283.0,3282.0,0.486]
[1738257520578,1.52311,3282.9,3282.0,0.486]
[1738257520787,0.4998,3283.0,3282.4,3.2078]
[1738257521083,0.60929,3282.7,3282.5,0.6093]
[1738257521279,0.6093,3282.6,3282.5,3.11234161]
[1738257521477,0.6093,3282.6,3282.5,0.5208]
[1738257521684,0.60929,3282.7,3282.5,1.13012]
[1738257521983,0.6093,3282.6,3282.5,0.5208]
[1738257522390,1.52298,3283.2,3282.5,3.11234161]
[1738257522572,0.6093,3282.6,3282.5,0.5208]
[1738257522775,0.6093,3282.6,3282.5,0.52537066]
[1738257523585,0.6093,3282.6,3282.5,0.00457066]
[1738257526781,0.60927,3282.8,3282.6,0.60929]
[1738257526989,0.60927,3282.8,3282.7,0.534]
[1738257527786,3.2078,3283.3,3282.5,0.00457066]
[1738257528084,0.6093,3282.6,3282.5,0.00457066]
[1738257529080,4.73075,3283.3,3282.5,0.61388066]
[1738257529389,0.6093,3282.6,3282.5,0.61389066]
[1738257529981,0.6093,3282.6,3282.5,0.00457066]
[1738257531485,0.61364808,3282.6,3282.5,0.00457066]
[1738257533188,3.2078,3283.3,3282.5,0.00457066]
[1738257533390,3.13851811,3284.0,3283.2,3.2078]
[1738257533391,2.01483,3283.5,3283.2,3.2078]
[1738257533591,0.60917,3283.3,3283.2,3.2078]
[1738257534285,0.60917,3283.3,3283.2,3.81697]
[1738257534485,0.60913,3283.6,3283.5,0.60912]
[1738257534990,0.529,3283.9,3283.2,3.7092]
[1738257535186,0.60917,3283.3,3283.2,3.7092]
[1738257535588,0.60914,3283.5,3283.4,0.60913]
[1738257535784,1.52263,3284.0,3283.2,3.7092]
[1738257535991,0.60908,3283.9,3283.8,0.60906]
[1738257536191,0.60907,3283.8,3283.7,1.10198]
[1738257537184,0.60907,3283.8,3283.7,0.4929]
[1738257537386,0.60907,3283.8,3283.7,1.10199]
[1738257538093,3.2078,3284.5,3283.7,0.4929]
[1738257538287,0.60907,3283.8,3283.7,1.10199]
[1738257538692,0.60907,3283.8,3283.7,0.4929]
[1738257538892,0.60909,3283.7,3283.6,3.2078]
[1738257539294,1.52247,3284.3,3283.6,3.2078]
[1738257539497,0.60907,3283.9,3283.8,0.60906]
[1738257539697,1.52247,3284.3,3283.6,3.2078]
[1738257540001,0.60909,3283.8,3283.7,0.60908]
[1738257540398,1.52251,3284.2,3283.6,3.2078]
[1738257540399,0.60909,3283.7,3283.6,3.2078]
[1738257541691,0.60917,3283.3,3283.2,6.84771811]
[1738257541998,0.60917,3283.3,3283.2,3.7092]
[1738257542386,0.60917,3283.3,3283.2,3.2078]
[1738257542803,0.60917,3283.3,3283.2,6.40587002]
[1738257543097,0.60917,3283.3,3283.2,5.79668002]
[1738257543492,0.60917,3283.3,3283.2,2.58888002]
[1738257543691,3.2078,3283.5,3282.9,2.58888002]
[1738257543997,0.60922,3283.0,3282.9,2.58888002]
[1738257544693,0.60924,3282.9,3282.8,3.2078]
[1738257544887,0.60928,3282.7,3282.6,3.09418002]
[1738257545094,0.60928,3282.7,3282.6,2.58888002]
[1738257545295,1.5231,3283.0,3282.5,0.00457066]
[1738257545296,0.6093,3282.6,3282.5,0.00457066]
[1738257546695,0.6093,3282.6,3282.5,2.59345068]
[1738257546895,0.6093,3282.6,3282.5,3.20277068]
[1738257547101,0.6093,3282.6,3282.5,2.59345068]
[1738257548101,3.2078,3283.2,3282.5,5.80125068]
[1738257548304,0.60927,3282.8,3282.7,0.60926]
[1738257548499,0.60927,3282.8,3282.7,3.19814002]
[1738257548797,0.60927,3282.8,3282.7,2.58888002]
[1738257548999,0.60927,3282.8,3282.7,3.72706002]
[1738257549201,0.60927,3282.8,3282.7,3.11778002]
[1738257549397,0.60927,3282.8,3282.7,3.72706002]
[1738257549600,0.60927,3282.8,3282.7,3.11778002]
[1738257552408,1.52309,3283.0,3282.5,0.00457066]
[1738257552714,0.6093,3282.6,3282.5,0.00457066]
[1738257553001,0.6093,3282.6,3282.5,0.61389066]
[1738257553207,3.2078,3283.2,3282.5,0.50627066]
[1738257553405,3.81699,3283.2,3283.1,2.58888002]
[1738257554397,0.60919,3283.2,3283.1,3.19808002]
[1738257554797,0.4818,3283.9,3283.1,3.60858002]
[1738257554798,1.52265,3283.9,3283.1,3.60858002]
[1738257555004,0.60909,3283.7,3283.6,2.58888002]
[1738257555703,0.60909,3283.7,3283.6,3.19799002]
[1738257555904,0.60909,3283.7,3283.6,2.58888002]
[1738257556103,0.60909,3283.7,3283.6,3.19799002]
[1738257556906,0.60909,3283.7,3283.6,2.58888002]
[1738257557306,0.60909,3283.7,3283.6,5.79668002]
[1738257557613,0.60909,3283.7,3283.6,6.40579002]
[1738257557801,0.60909,3283.7,3283.6,5.79668002]
[1738257558400,0.60909,3283.7,3283.6,3.2078]
[1738257558907,1.52263,3284.0,3283.3,2.58888002]
[1738257558908,0.5199,3283.9,3283.3,2.58888002]
[1738257559113,1.52263,3284.0,3283.5,3.19799002]
[1738257559114,0.60912,3283.6,3283.5,3.19799002]
[1738257559413,0.60912,3283.6,3283.5,2.58888002]
[1738257560106,0.60917,3283.3,3283.2,5.79668002]
[1738257561110,1.52278,3283.7,3283.2,5.79668002]
[1738257561315,0.60916,3283.4,3283.3,0.60917]
[1738257561507,0.60914,3283.5,3283.3,0.60917]
[1738257561708,0.60915,3283.4,3283.3,0.60917]
[1738257561903,0.60914,3283.5,3283.2,5.79668002]
[1738257562107,0.60914,3283.5,3283.3,0.60916]
[1738257562811,3.2078,3284.1,3283.2,5.79668002]
[1738257563115,0.60917,3283.3,3283.2,6.40587002]
[1738257563319,2.0098,3283.8,3283.2,6.40587002]
[1738257563511,0.60911,3283.6,3283.5,3.19801002]
[1738257564206,3.2078,3284.1,3283.2,5.79668002]
[1738257564406,0.60916,3283.4,3283.2,5.79668002]
[1738257564614,0.60916,3283.4,3283.3,0.60917]
[1738257564809,0.60912,3283.6,3283.5,0.60913]
[1738257565112,0.60912,3283.6,3283.5,2.58888002]
[1738257565709,0.60911,3283.7,3283.6,0.60911]
[1738257566109,0.60909,3283.8,3283.7,0.60909]
[1738257566412,0.5126,3284.3,3283.5,2.58888002]
[1738257566619,0.60911,3283.7,3283.6,0.6091]
[1738257566916,0.60909,3283.8,3283.7,0.60908]
[1738257567108,1.52256,3284.1,3283.5,2.58888002]
[1738257567308,0.6091,3283.8,3283.5,2.58888002]
[1738257567516,0.60911,3283.7,3283.6,0.6091]
[1738257568420,0.60911,3283.6,3283.5,2.58888002]
[1738257569012,0.60911,3283.6,3283.5,3.19801002]
[1738257569408,0.60911,3283.6,3283.5,2.58888002]
[1738257569715,0.60911,3283.7,3283.6,0.60908]
[1738257570311,1.52257,3284.1,3283.2,3.2078]
[1738257570312,0.60915,3283.5,3283.2,6.04352107]
[1738257570617,1.5227,3283.8,3283.2,5.79668002]
[1738257570822,0.60917,3283.3,3283.2,5.00428711]
[1738257571009,0.60917,3283.3,3283.2,5.00429711]
[1738257571209,0.60913,3283.6,3283.5,0.60912]
[1738257571407,0.60913,3283.6,3283.5,3.19800002]
[1738257571617,0.60913,3283.6,3283.5,3.0843856]
[1738257571817,0.60913,3283.6,3283.5,2.58888002]
[1738257572712,0.60913,3283.6,3283.5,3.19801002]
[1738257572912,1.52262,3284.0,3283.5,2.58888002]
[1738257573109,0.60911,3283.7,3283.6,0.6091]
[1738257573618,0.60909,3283.8,3283.7,0.60906]
[1738257573822,3.2078,3284.1,3283.7,0.60909]
[1738257574122,0.60907,3283.8,3283.7,0.60909]
[1738257574314,0.60907,3283.8,3283.7,1.11659]
[1738257575513,0.60907,3283.8,3283.7,0.5075]
[1738257575722,0.60907,3283.8,3283.5,2.58888002]
[1738257575723,0.60911,3283.6,3283.5,2.58888002]
[1738257575913,0.60911,3283.6,3283.5,3.19801002]
[1738257576619,0.60915,3283.4,3283.3,0.5148]
[1738257576815,4.73058,3283.7,3282.7,0.60927]
[1738257576816,4.2198,3283.7,3282.7,0.60927]
[1738257577022,3.2078,3283.1,3282.6,2.58888002]
[1738257577219,0.60928,3282.7,3282.6,3.19818002]
[1738257577424,0.60927,3282.8,3282.7,0.60927]
[1738257577720,0.60928,3282.7,3282.6,3.19817002]
[1738257578024,0.60928,3282.7,3282.6,2.58888002]
[1738257578223,0.60928,3282.7,3282.6,3.19818002]
[1738257578520,0.60928,3282.7,3282.6,2.58888002]
[1738257578722,0.60928,3282.7,3282.6,3.19818002]
[1738257578915,3.2078,3283.1,3282.6,2.58888002]
[1738257579117,3.817,3283.1,3283.0,2.58888002]
[1738257580326,3.817,3283.1,3283.0,3.19810002]
[1738257580925,3.2078,3283.3,3283.2,0.60918]
[1738257581223,1.5156,3283.8,3283.4,0.60915]
[1738257581224,0.60914,3283.5,3283.4,0.60915]
[1738257581433,0.60912,3283.6,3283.4,0.60915]
[1738257581623,0.60912,3283.6,3283.5,2.58888002]
[1738257582022,3.2078,3283.7,3283.5,2.58888002]
[1738257582217,1.52248,3284.3,3283.5,2.58888002]
[1738257582628,3.2078,3284.4,3283.5,2.58888002]
[1738257582831,0.60908,3283.8,3283.7,0.60907]
[1738257583331,3.2078,3284.4,3283.5,2.58888002]
[1738257583530,0.60911,3283.6,3283.5,2.58888002]
[1738257584128,4.2186,3283.8,3283.3,3.81696]
[1738257584329,0.60915,3283.4,3283.3,3.81696]
[1738257585029,4.2186,3283.8,3283.2,2.58888002]
[1738257585237,3.2078,3283.4,3281.7,3.2078]
[1738257585533,3.2078,3282.6,3282.0,1.26875252]
[1738257585722,3.2078,3282.6,3282.4,0.60933]
[1738257586029,3.8171,3282.6,3282.2,0.60936]
[1738257586329,3.8171,3282.6,3282.1,0.60938]
[1738257586833,0.60929,3282.7,3282.3,0.60935]
[1738257587133,0.60929,3282.7,3282.1,3.2078]
[1738257587134,0.6093,3282.6,3282.4,0.5014]
[1738257588129,0.4862,3282.9,3282.4,0.5014]
[1738257588337,3.81703,3283.0,3282.8,2.58888002]
[1738257588738,3.2078,3283.0,3282.9,0.4842]
[1738257588936,0.6092,3283.2,3282.9,0.4842]
[1738257589438,0.6092,3283.1,3283.0,0.4979]
[1738257589825,0.6092,3283.2,3283.0,0.4979]
[1738257590028,0.6092,3283.1,3283.0,0.4979]
[1738257591437,0.60919,3283.2,3283.0,0.4979]
[1738257591737,0.60919,3283.2,3283.0,0.40644399]
[1738257591937,0.60918,3283.3,3283.0,1.01565399]
[1738257593028,0.60918,3283.3,3283.0,0.40644399]
[1738257593229,0.6093,3282.6,3282.5,2.59345068]
[1738257593433,2.00903,3283.6,3282.6,0.60929]
[1738257593434,0.60927,3282.8,3282.6,0.60929]
[1738257593626,3.2078,3283.0,3282.5,2.59345068]
[1738257593826,3.8171,3282.6,3282.5,0.00457066]
[1738257597435,0.6093,3282.6,3282.5,2.59345068]
[1738257597745,0.6093,3282.6,3282.5,0.00457066]
[1738257598640,0.6093,3282.6,3282.5,2.59345068]
[1738257601140,0.6093,3282.6,3282.5,3.20277068]
[1738257601339,0.6093,3282.6,3282.5,3.10825068]
[1738257602039,3.2078,3283.0,3282.5,3.10825068]
[1738257602345,3.2078,3283.0,3282.9,0.60924]
[1738257602536,3.2078,3283.0,3282.8,2.58888002]
[1738257602735,0.60924,3282.9,3282.8,2.58888002]
[1738257603031,0.60924,3282.9,3282.8,3.19814002]
[1738257603231,3.2078,3283.0,3282.9,0.60924]
[1738257603433,0.60922,3283.1,3283.0,0.60922]
[1738257603834,0.60922,3283.1,3282.8,2.58888002]
[1738257604030,0.60922,3283.1,3282.9,0.60923]
[1738257604443,3.2078,3283.4,3283.0,0.5024]
[1738257604839,3.2078,3283.4,3282.8,2.58888002]
[1738257605048,0.60924,3282.9,3282.8,2.58888002]
[1738257608143,0.6093,3282.6,3282.5,3.10825068]
[1738257608845,0.5161,3282.8,3282.3,1.59785]
[1738257609046,0.5161,3282.8,3282.4,2.58888002]
[1738257609047,0.60933,3282.5,3282.4,2.58888002]
[1738257609940,0.60937,3282.2,3282.1,2.59345068]
[1738257610647,2.03931,3282.7,3282.2,0.60936]
[1738257610846,0.5161,3282.7,3282.4,2.58888002]
[1738257611040,0.00457066,3282.8,3282.4,2.58888002]
[1738257611236,0.61383066,3282.8,3282.7,2.58888002]
[1738257611435,0.00457066,3282.8,3282.7,2.58888002]
[1738257611641,0.00457066,3282.8,3282.7,3.19816002]
[1738257612046,0.00457066,3282.8,3282.7,3.72906002]
[1738257612544,0.00457066,3282.8,3282.7,3.11978002]
[1738257612757,0.61383066,3282.8,3282.7,3.11978002]
[1738257613145,0.00457066,3282.8,3282.7,3.11978002]
[1738257613345,0.00457066,3282.8,3282.7,3.72906002]
[1738257613646,0.61383066,3282.8,3282.7,3.11978002]
[1738257614047,0.61383066,3282.8,3282.7,2.58888002]
[1738257614248,0.60935,3282.3,3282.2,1.0494]
[1738257614752,3.2078,3282.6,3282.1,0.00457066]
[1738257614753,0.60937,3282.2,3282.1,0.00457066]
[1738257614946,3.2078,3282.6,3282.1,0.00457066]
[1738257615146,0.4828,3282.7,3282.1,0.61395066]
[1738257615340,0.60936,3282.3,3282.1,0.61395066]
[1738257615542,0.60936,3282.3,3282.1,0.00457066]
[1738257615743,0.60935,3282.3,3282.2,0.60937]
[1738257616150,0.60933,3282.5,3282.3,0.60935]
[1738257616349,0.60933,3282.5,3282.2,2.58888002]
[1738257616350,0.4828,3282.7,3282.2,6.40604002]
[1738257616545,0.4828,3282.7,3282.2,5.79668002]
[1738257616750,0.60935,3282.3,3282.2,2.58888002]
[1738257617052,0.60935,3282.3,3282.2,3.19825002]
[1738257617361,0.60935,3282.4,3282.3,0.60935]
[1738257617545,0.6093,3282.6,3282.2,3.19824002]
[1738257617746,0.60935,3282.3,3282.2,2.58888002]
[1738257618053,0.60935,3282.3,3282.2,6.40605002]
[1738257618649,0.60935,3282.3,3282.2,5.79668002]
[1738257619053,0.60935,3282.3,3282.2,6.40605002]
[1738257619852,1.52776066,3282.8,3282.2,5.79668002]
[1738257619853,0.00457066,3282.8,3282.2,5.79668002]
[1738257620054,0.6093,3282.6,3282.5,0.60931]
[1738257620353,0.60932,3282.5,3282.4,0.60933]
[1738257620758,0.60932,3282.5,3282.4,2.58888002]
[1738257621751,1.52775066,3282.8,3282.5,0.6093]
[1738257621752,0.00457066,3282.8,3282.5,0.6093]
[1738257621951,0.6093,3282.6,3282.5,0.6093]
[1738257622151,0.00457066,3282.8,3282.4,2.58888002]
[1738257622454,0.00457066,3282.8,3282.5,0.60931]
[1738257622455,0.60931,3282.6,3282.5,0.60931]
[1738257623647,0.60931,3282.6,3282.4,2.58888002]
[1738257623648,0.00457066,3282.8,3282.4,2.58888002]
[1738257623848,0.61383066,3282.8,3282.7,2.58888002]
[1738257624148,0.61383066,3282.8,3282.7,2.13954382]
[1738257624456,0.00457066,3282.8,3282.7,2.74882382]
[1738257624953,0.61383066,3282.8,3282.7,2.74882382]
[1738257625154,0.00457066,3282.8,3282.7,2.74882382]
[1738257625560,0.61383066,3282.8,3282.7,2.74882382]
[1738257626451,0.61383066,3282.8,3282.7,2.13954382]
[1738257626649,0.61383066,3282.8,3282.7,2.67284382]
[1738257626854,0.61383066,3282.8,3282.7,2.13954382]
[1738257627556,0.61383066,3282.8,3282.7,2.74882382]
[1738257627745,0.61383066,3282.8,3282.7,2.13954382]
[1738257628152,0.00457066,3282.8,3282.5,1.0305]
[1738257628358,0.6093,3282.6,3282.5,0.5145]
[1738257628658,0.60932,3282.5,3282.4,2.58888002]
[1738257629352,0.60932,3282.5,3282.4,3.19821002]
[1738257630853,0.60932,3282.5,3282.4,2.58888002]
[1738257631048,0.60932,3282.5,3282.4,3.19821002]
[1738257631662,0.60932,3282.5,3282.4,2.58888002]
[1738257631864,0.60935,3282.3,3282.2,3.2078]
[1738257632656,0.60935,3282.3,3282.2,3.81717]
[1738257632863,0.60935,3282.4,3282.3,0.60934]
[1738257633562,0.60935,3282.3,3282.2,3.81716]
[1738257635159,0.60935,3282.3,3282.2,3.2078]
[1738257635566,0.60935,3282.3,3282.2,3.81717]
[1738257635957,0.60935,3282.3,3282.2,3.2078]
[1738257636154,0.60937,3282.2,3282.1,2.59345068]
[1738257636463,0.60937,3282.2,3282.1,3.20284068]
[1738257636661,0.60937,3282.2,3282.1,0.00457066]
[1738257638758,0.5019,3282.5,3282.1,5.80125068]
[1738257638958,3.2078,3283.4,3282.4,5.17776004]
[1738257639160,0.46771879,3283.3,3283.1,0.60919]
[1738257639362,1.52277,3283.7,3283.1,2.58888002]
[1738257639559,0.4924,3283.8,3282.5,3.8171]
[1738257639560,3.2078,3283.5,3282.5,3.8171]
[1738257639759,0.60929,3282.7,3282.5,3.8171]
[1738257639959,0.60929,3282.7,3282.6,2.58888002]
[1738257640160,0.60928,3282.7,3282.6,3.19817002]
[1738257640359,1.0027,3283.0,3282.6,2.58888002]
[1738257640560,1.0027,3283.0,3282.7,0.60927]
[1738257640561,0.60927,3282.8,3282.7,0.60927]
[1738257641366,0.60927,3282.8,3282.5,3.2078]
[1738257641367,0.60929,3282.7,3282.6,0.60929]
[1738257641563,0.60927,3282.8,3282.7,0.60928]
[1738257641868,1.0027,3283.0,3282.9,0.60924]
[1738257642168,1.0027,3283.0,3282.8,0.60926]
[1738257642364,1.61194,3283.0,3282.9,2.58888002]
[1738257642768,0.4924,3283.0,3282.9,2.58888002]
[1738257642968,0.4924,3283.0,3282.9,3.19812002]
[1738257643168,1.10162,3283.0,3282.9,2.58888002]
[1738257643678,1.10162,3283.0,3282.9,3.19812002]
[1738257644264,0.4924,3283.0,3282.9,3.19812002]
[1738257644465,3.81701,3283.1,3283.0,0.60922]
[1738257644865,3.81701,3283.1,3283.0,1.13702]
[1738257645764,0.60917,3283.3,3283.0,0.5278]
[1738257645971,0.4825,3283.4,3283.3,0.60917]
[1738257646162,0.4825,3283.4,3283.3,0.50522647]
[1738257646366,1.09165,3283.4,3283.3,0.50522647]
[1738257648272,0.4825,3283.4,3283.3,0.50522647]
[1738257648472,1.09165,3283.4,3283.3,0.50522647]
[1738257648661,0.4825,3283.4,3283.2,2.58888002]
[1738257648969,0.4825,3283.4,3282.9,5.79668002]
[1738257649172,0.60922,3283.0,3282.9,2.58888002]
[1738257649374,0.60922,3283.0,3282.9,3.19812002]
[1738257649571,3.7305,3283.3,3282.9,2.58888002]
[1738257649773,0.60922,3283.1,3283.0,0.60921]
[1738257650172,3.2078,3283.3,3282.9,2.58888002]
[1738257650374,3.2078,3283.3,3283.2,3.19807002]
[1738257650574,3.81697,3283.3,3283.2,3.19807002]
[1738257650769,0.60917,3283.3,3283.2,3.19807002]
[1738257650973,0.4825,3283.4,3282.9,5.79668002]
[1738257651173,0.60922,3283.1,3283.0,0.60922]
[1738257652177,0.60922,3283.0,3282.9,3.19811002]
[1738257652477,0.4825,3283.4,3282.9,3.19811002]
[1738257652672,0.60922,3283.0,3282.9,3.19811002]